[Event "Slovakia Open Piestany-A 2022"]
[Site "Piestany"]
[Date "2022.07.15"]
[Round "5.9"]
[White "Marek, Matyas"]
[Black "Piesik, Piotr"]
[Result "0-1"]
[ECO "C07"]
[WhiteElo "2354"]
[BlackElo "2440"]
[Annotator "ChessBase"]
[PlyCount "56"]
[EventDate "2022.07.12"]
[EventType "swiss"]
[EventCountry "SVK"]
[SourceTitle "playchess.com"]
[Source "ChessBase"]
[SourceQuality "1"]
[TimeControl "40/5400+30:1800+30"]

1. e4 {[%emt 0:00:09]} e6 {[%emt 0:01:37]} 2. d4 {[%emt 0:00:05]} d5 {[%emt 0:00:04]} 3. Nd2 {[%emt 0:00:12]} c5 {[%emt 0:00:21]} 4. exd5 {[%emt 0:00:06]} Qxd5 {[%emt 0:00:04]} 5. Ngf3 {[%emt 0:00:05]} cxd4 {[%emt 0:00:06]} 6. Bc4 {[%emt 0:00:06]} Qd6 {[%emt 0:00:05]} 7. O-O {[%emt 0:00:13]} Nf6 {[%emt 0:00:04]} 8. Nb3 {[%emt 0:00:04]} Nc6 {[%emt 0:00:05]} 9. Nbxd4 {[%emt 0:00:12]} Nxd4 {[%emt 0:00:07]} 10. Nxd4 {[%emt 0:00:05]} a6 {[%emt 0:00:04]} 11. Bb3 {[%emt 0:00:12]} Qc7 {[%emt 0:01:57]} 12. Qf3 {[%emt 0:00:06]} Bd6 {[%emt 0:05:55]} 13. Kh1 {[%emt 0:00:07]} Be5 {[%emt 0:13:59]} 14. c3 {[%emt 0:05:34]} h5 {[%emt 0:09:39]} 15. Qh3 {[%emt 0:10:22]} Bd7 {[%emt 0:02:59]} 16. f4 {[%emt 0:02:53]} Bd6 {[%emt 0:01:52]} 17. f5 {[%emt 0:01:31]} e5 {[%emt 0:00:49]} 18. Nf3 {[%emt 0:00:34]} Bb5 {[%emt 0:10:03]} 19. Re1 {[%emt 0:15:09]} Ng4 {[%emt 0:03:54]} 20. Be3 {[%emt 0:00:08]} O-O-O {[%emt 0:02:16]} 21. c4 {[%emt 0:14:00]} Bc5 {[%emt 0:01:51]} 22. Bxc5 {[%emt 0:03:01]} Qxc5 {[%emt 0:01:47]} 23. Rf1 {[%emt 0:00:06]} Bc6 {[%emt 0:04:12]} 24. Qg3 {[%emt 0:09:46]} Rd3 {[%emt 0:03:46]} 25. Bc2 {[%emt 0:04:45]} Re3 {[%emt 0:00:11]} 26. a3 {[%emt 0:02:09]} e4 {[%emt 0:01:09]} 27. b4 {[%emt 0:00:40]} exf3 {[%emt 0:01:41]} 28. gxf3 {[%emt 0:00:38]} Qe5 {[%emt 0:00:46]} 0-1

[Event "Slovakia Open Piestany-A 2022"]
[Site "Piestany"]
[Date "2022.07.15"]
[Round "5.10"]
[White "Kostolansky, Sebastian Lukas"]
[Black "Bochnicka, Vladimir"]
[Result "1-0"]
[ECO "C78"]
[WhiteElo "2406"]
[BlackElo "2295"]
[Annotator "ChessBase"]
[PlyCount "57"]
[EventDate "2022.07.12"]
[EventType "swiss"]
[EventCountry "SVK"]
[SourceTitle "playchess.com"]
[Source "ChessBase"]
[SourceQuality "1"]
[TimeControl "40/5400+30:1800+30"]

1. e4 {[%emt 0:00:03]} e5 {[%emt 0:00:04]} 2. Nf3 {[%emt 0:00:08]} Nc6 {[%emt 0:00:06]} 3. Bb5 {[%emt 0:00:04]} a6 {[%emt 0:00:07]} 4. Ba4 {[%emt 0:00:04]} Nf6 {[%emt 0:00:07]} 5. O-O {[%emt 0:00:06]} b5 {[%emt 0:00:06]} 6. Bb3 {[%emt 0:00:04]} Bc5 {[%emt 0:00:09]} 7. c3 {[%emt 0:02:20]} d6 {[%emt 0:00:11]} 8. d4 {[%emt 0:01:13]} Bb6 {[%emt 0:00:12]} 9. a4 {[%emt 0:00:54]} Rb8 {[%emt 0:01:22]} 10. a5 {[%emt 0:02:11]} Nxa5 {[%emt 0:00:50]} 11. Rxa5 {[%emt 0:08:08]} Bxa5 {[%emt 0:00:08]} 12. dxe5 {[%emt 0:00:03]} Ng4 {[%emt 0:00:20]} 13. Bg5 {[%emt 0:28:33]} f6 {[%emt 0:11:54]} 14. exf6 {[%emt 0:03:10]} gxf6 {[%emt 0:00:28]} 15. Bh4 {[%emt 0:00:26]} c5 {[%emt 0:19:42]} 16. h3 {[%emt 0:14:04]} c4 {[%emt 0:04:30]} 17. hxg4 {[%emt 0:05:04]} cxb3 {[%emt 0:00:07]} 18. Nd4 {[%emt 0:02:24]} Rb7 {[%emt 0:08:49]} 19. Nc6 {[%emt 0:06:59]} Qc7 {[%emt 0:06:33]} 20. Nxa5 {[%emt 0:00:17]} Qxa5 {[%emt 0:00:13]} 21. Bxf6 {[%emt 0:00:26]} Rf8 {[%emt 0:03:23]} 22. g5 {[%emt 0:05:32]} Qc7 {[%emt 0:03:43]} 23. e5 {[%emt 0:03:02]} dxe5 {[%emt 0:02:38]} 24. Re1 {[%emt 0:00:15]} Be6 {[%emt 0:05:17]} 25. Bxe5 {[%emt 0:02:00]} Qf7 {[%emt 0:14:45]} 26. Bf6 {[%emt 0:01:46]} Rd7 {[%emt 0:01:54]} 27. Qf3 {[%emt 0:02:25]} Rd6 {[%emt 0:00:04]} 28. Qa8+ {[%emt 0:00:18]} Kd7 {[%emt 0:00:04]} 29. Qb7+ {[%emt 0:00:05]} 1-0

[Event "Slovakia Open Piestany-A 2022"]
[Site "Piestany"]
[Date "2022.07.15"]
[Round "5.11"]
[White "Pniaczek, Marek"]
[Black "Pacher, Milan"]
[Result "0-1"]
[ECO "C43"]
[WhiteElo "2312"]
[BlackElo "2399"]
[Annotator "ChessBase"]
[PlyCount "78"]
[EventDate "2022.07.12"]
[EventType "swiss"]
[EventCountry "SVK"]
[SourceTitle "playchess.com"]
[Source "ChessBase"]
[SourceQuality "1"]
[TimeControl "40/5400+30:1800+30"]

1. e4 {[%emt 0:00:07]} e5 {[%emt 0:08:12]} 2. Nf3 {[%emt 0:00:55]} Nf6 {[%emt 0:00:07]} 3. d4 {[%emt 0:02:12]} Nxe4 {[%emt 0:00:06]} 4. Bd3 {[%emt 0:00:14]} Nc6 {[%emt 0:00:13]} 5. Nxe5 {[%emt 0:14:31]} Nxe5 {[%emt 0:01:58]} 6. dxe5 {[%emt 0:00:02]} Nc5 {[%emt 0:00:20]} 7. Bc4 {[%emt 0:02:18]} d6 {[%emt 0:01:16]} 8. Nc3 {[%emt 0:03:54]} Be6 {[%emt 0:00:29]} 9. Bxe6 {[%emt 0:01:36]} Nxe6 {[%emt 0:00:03]} 10. exd6 {[%emt 0:02:32]} Bxd6 {[%emt 0:00:03]} 11. Be3 {[%emt 0:04:42]} Bb4 {[%emt 0:05:06]} 12. Qf3 {[%emt 0:06:40]} Bxc3+ {[%emt 0:03:01]} 13. bxc3 {[%emt 0:00:02]} Qf6 {[%emt 0:00:08]} 14. Qxf6 {[%emt 0:01:22]} gxf6 {[%emt 0:00:03]} 15. Rb1 {[%emt 0:12:02]} O-O-O {[%emt 0:02:43]} 16. Rb4 {[%emt 0:02:39]} Rd5 {[%emt 0:01:23]} 17. Ke2 {[%emt 0:02:20]} Rhd8 {[%emt 0:00:49]} 18. Rh4 {[%emt 0:02:00]} h5 {[%emt 0:00:50]} 19. Rb1 {[%emt 0:05:41]} R8d6 {[%emt 0:01:57]} 20. g4 {[%emt 0:03:13]} hxg4 {[%emt 0:00:55]} 21. Rxg4 {[%emt 0:00:30]} b6 {[%emt 0:01:14]} 22. h4 {[%emt 0:01:54]} f5 {[%emt 0:02:15]} 23. Rg8+ {[%emt 0:01:44]} Kb7 {[%emt 0:00:03]} 24. f4 {[%emt 0:04:32]} Ra5 {[%emt 0:06:12]} 25. Rd1 {[%emt 0:02:03]} Rxa2 {[%emt 0:03:44]} 26. Rxd6 {[%emt 0:00:51]} cxd6 {[%emt 0:00:02]} 27. Bd2 {[%emt 0:08:03]} Ra1 {[%emt 0:08:43]} 28. Rh8 {[%emt 0:00:54]} a5 {[%emt 0:04:57]} 29. Rh7 {[%emt 0:00:08]} a4 {[%emt 0:09:19]} 30. Rxf7+ {[%emt 0:00:04]} Nc7 {[%emt 0:00:06]} 31. c4 {[%emt 0:02:06]} a3 {[%emt 0:00:36]} 32. Bb4 {[%emt 0:10:11]} a2 {[%emt 0:05:45]} 33. Bxd6 {[%emt 0:00:18]} Re1+ {[%emt 0:00:12]} 34. Kxe1 {[%emt 0:00:04]} a1=Q+ {[%emt 0:00:07]} 35. Ke2 {[%emt 0:00:02]} Qc3 {[%emt 0:00:57]} 36. Rxc7+ {[%emt 0:00:26]} Ka6 {[%emt 0:00:02]} 37. Be5 {[%emt 0:00:59]} Qxc2+ {[%emt 0:00:03]} 38. Ke3 {[%emt 0:00:51]} Qc1+ {[%emt 0:00:12]} 39. Kd4 {[%emt 0:00:55]} Qd2# {[%emt 0:00:21]} 0-1

[Event "Slovakia Open Piestany-A 2022"]
[Site "Piestany"]
[Date "2022.07.15"]
[Round "5.12"]
[White "Turcan, Richard"]
[Black "Czerw, Dawid"]
[Result "0-1"]
[ECO "B33"]
[WhiteElo "2304"]
[BlackElo "2391"]
[Annotator "ChessBase"]
[PlyCount "84"]
[EventDate "2022.07.12"]
[EventType "swiss"]
[EventCountry "SVK"]
[SourceTitle "playchess.com"]
[Source "ChessBase"]
[SourceQuality "1"]
[TimeControl "40/5400+30:1800+30"]

1. e4 {[%emt 0:01:13]} c5 {[%emt 0:00:02]} 2. Nf3 {[%emt 0:00:49]} Nc6 {[%emt 0:00:06]} 3. d4 {[%emt 0:00:43]} cxd4 {[%emt 0:00:05]} 4. Nxd4 {[%emt 0:00:03]} Nf6 {[%emt 0:00:07]} 5. Nc3 {[%emt 0:00:05]} e5 {[%emt 0:00:04]} 6. Ndb5 {[%emt 0:00:10]} d6 {[%emt 0:00:06]} 7. Bg5 {[%emt 0:00:06]} a6 {[%emt 0:00:03]} 8. Na3 {[%emt 0:00:03]} b5 {[%emt 0:00:12]} 9. Bxf6 {[%emt 0:00:32]} gxf6 {[%emt 0:00:11]} 10. Nd5 {[%emt 0:00:06]} f5 {[%emt 0:00:29]} 11. c3 {[%emt 0:00:18]} Bg7 {[%emt 0:00:59]} 12. exf5 {[%emt 0:00:06]} Bxf5 {[%emt 0:00:07]} 13. Nc2 {[%emt 0:00:04]} O-O {[%emt 0:00:52]} 14. Nce3 {[%emt 0:00:28]} Be6 {[%emt 0:00:07]} 15. Bd3 {[%emt 0:00:18]} f5 {[%emt 0:00:10]} 16. O-O {[%emt 0:00:25]} Kh8 {[%emt 0:00:46]} 17. Bc2 {[%emt 0:15:52]} Ne7 {[%emt 0:31:43]} 18. a4 {[%emt 0:14:25]} bxa4 {[%emt 0:08:11]} 19. Rxa4 {[%emt 0:08:14]} Ng6 {[%emt 0:01:28]} 20. Qh5 {[%emt 0:08:46]} e4 {[%emt 0:05:56]} 21. f3 {[%emt 0:08:11]} Be5 {[%emt 0:19:38]} 22. f4 {[%emt 0:17:43]} Bg7 {[%emt 0:03:01]} 23. g4 {[%emt 0:03:19]} Nh4 {[%emt 0:08:10]} 24. gxf5 {[%emt 0:05:18]} Bxf5 {[%emt 0:05:22]} 25. Nxf5 {[%emt 0:00:30]} Rxf5 {[%emt 0:00:30]} 26. Qd1 {[%emt 0:00:30]} Qg8 {[%emt 0:00:30]} 27. Bxe4 {[%emt 0:00:11]} Re8 {[%emt 0:00:27]} 28. Kh1 {[%emt 0:01:04]} Rxe4 {[%emt 0:02:41]} 29. Rxe4 {[%emt 0:00:15]} Rxd5 {[%emt 0:00:38]} 30. Re8 {[%emt 0:05:35]} Qxe8 {[%emt 0:01:39]} 31. f5 {[%emt 0:00:41]} h6 {[%emt 0:00:36]} 32. Qxd5 {[%emt 0:03:13]} Qe2 {[%emt 0:00:44]} 33. Ra1 {[%emt 0:00:30]} Nf3 {[%emt 0:07:17]} 34. Qxd6 {[%emt 0:00:19]} Ne1 {[%emt 0:00:10]} 35. Rxe1 {[%emt 0:02:02]} Qxe1+ {[%emt 0:00:02]} 36. Kg2 {[%emt 0:00:06]} Qe4+ {[%emt 0:01:15]} 37. Kg1 {[%emt 0:00:49]} Qb1+ {[%emt 0:00:11]} 38. Kg2 {[%emt 0:00:13]} Qxb2+ {[%emt 0:00:27]} 39. Kf1 {[%emt 0:01:50]} Qc1+ {[%emt 0:01:44]} 40. Kg2 {[%emt 0:00:20]} Qg5+ {[%emt 0:00:43]} 41. Kh1 {[%emt 0:30:10]} a5 {[%emt 0:06:48]} 42. Qc5 {[%emt 0:00:00]} Qc1+ {[%emt 0:01:06]} 0-1

[Event "Slovakia Open Piestany-A 2022"]
[Site "Piestany"]
[Date "2022.07.15"]
[Round "5.13"]
[White "Savitha Shri B"]
[Black "Favaloro, Andrea"]
[Result "1/2-1/2"]
[ECO "D77"]
[WhiteElo "2278"]
[BlackElo "2361"]
[Annotator "ChessBase"]
[PlyCount "36"]
[EventDate "2022.07.12"]
[EventType "swiss"]
[EventCountry "SVK"]
[SourceTitle "playchess.com"]
[Source "ChessBase"]
[SourceQuality "1"]
[TimeControl "40/5400+30:1800+30"]

1. Nf3 {[%emt 0:00:33]} d5 {[%emt 0:00:33]} 2. g3 {[%emt 0:00:23]} g6 {[%emt 0:02:10]} 3. d4 {[%emt 0:01:10]} Bg7 {[%emt 0:00:18]} 4. Bg2 {[%emt 0:01:11]} Nf6 {[%emt 0:00:12]} 5. O-O {[%emt 0:01:13]} O-O {[%emt 0:00:12]} 6. c4 {[%emt 0:01:35]} dxc4 {[%emt 0:00:07]} 7. Na3 {[%emt 0:00:40]} c5 {[%emt 0:00:15]} 8. Nxc4 {[%emt 0:00:29]} Be6 {[%emt 0:00:14]} 9. Nfe5 {[%emt 0:00:13]} Qc8 {[%emt 0:00:12]} 10. dxc5 {[%emt 0:03:06]} Nfd7 {[%emt 0:00:11]} 11. Nxd7 {[%emt 0:05:11]} Nxd7 {[%emt 0:00:09]} 12. c6 {[%emt 0:00:26]} bxc6 {[%emt 0:00:07]} 13. Na5 {[%emt 0:00:43]} Bd5 {[%emt 0:00:09]} 14. Bxd5 {[%emt 0:02:01]} cxd5 {[%emt 0:00:06]} 15. Qxd5 {[%emt 0:00:17]} Nf6 {[%emt 0:00:09]} 16. Qf3 {[%emt 0:02:47]} Qe6 {[%emt 0:01:36]} 17. Nb3 {[%emt 0:08:04]} Ne4 {[%emt 0:01:04]} 18. Rb1 {[%emt 0:06:50]} a5 {[%emt 0:00:48]} 1/2-1/2

[Event "Slovakia Open Piestany-A 2022"]
[Site "Piestany"]
[Date "2022.07.15"]
[Round "5.14"]
[White "Dixit, Nikhil"]
[Black "Sharma Isha"]
[Result "1/2-1/2"]
[ECO "B41"]
[WhiteElo "2325"]
[BlackElo "2236"]
[Annotator "ChessBase"]
[PlyCount "147"]
[EventDate "2022.07.12"]
[EventType "swiss"]
[EventCountry "SVK"]
[SourceTitle "playchess.com"]
[Source "ChessBase"]
[SourceQuality "1"]
[TimeControl "40/5400+30:1800+30"]

1. e4 {[%emt 0:04:03]} c5 {[%emt 0:00:30]} 2. Nf3 {[%emt 0:00:12]} e6 {[%emt 0:00:04]} 3. d4 {[%emt 0:04:11]} cxd4 {[%emt 0:00:07]} 4. Nxd4 {[%emt 0:00:04]} a6 {[%emt 0:00:04]} 5. c4 {[%emt 0:02:16]} Nc6 {[%emt 0:12:44]} 6. Nc3 {[%emt 0:02:28]} Qc7 {[%emt 0:01:08]} 7. Be2 {[%emt 0:05:31]} Nf6 {[%emt 0:00:09]} 8. Nc2 {[%emt 0:02:44]} Bd6 {[%emt 0:03:01]} 9. h3 {[%emt 0:07:11]} Be5 {[%emt 0:10:24]} 10. Qd3 {[%emt 0:01:22]} O-O {[%emt 0:00:51]} 11. O-O {[%emt 0:01:58]} Bf4 {[%emt 0:18:15]} 12. Bxf4 {[%emt 0:09:38]} Qxf4 {[%emt 0:00:07]} 13. Qe3 {[%emt 0:00:21]} Qc7 {[%emt 0:06:18]} 14. Rad1 {[%emt 0:09:22]} Rd8 {[%emt 0:00:13]} 15. Rd2 {[%emt 0:02:26]} b6 {[%emt 0:04:28]} 16. Rfd1 {[%emt 0:04:42]} Bb7 {[%emt 0:05:16]} 17. Na4 {[%emt 0:09:04]} b5 {[%emt 0:01:40]} 18. Nb6 {[%emt 0:12:35]} Rab8 {[%emt 0:00:37]} 19. c5 {[%emt 0:00:14]} Ne7 {[%emt 0:07:41]} 20. f3 {[%emt 0:02:51]} Nc8 {[%emt 0:01:36]} 21. e5 {[%emt 0:04:58]} Nd5 {[%emt 0:01:04]} 22. Nxd5 {[%emt 0:00:00]} Bxd5 {[%emt 0:00:04]} 23. Nb4 {[%emt 0:00:29]} Bb7 {[%emt 0:00:14]} 24. c6 {[%emt 0:03:06]} Bxc6 {[%emt 0:00:05]} 25. Nxa6 {[%emt 0:00:17]} Qb6 {[%emt 0:00:05]} 26. Qxb6 {[%emt 0:00:12]} Rxb6 {[%emt 0:00:06]} 27. Nb4 {[%emt 0:00:10]} Re8 {[%emt 0:03:05]} 28. Nxc6 {[%emt 0:01:38]} dxc6 {[%emt 0:00:08]} 29. Rd7 {[%emt 0:00:23]} Ra6 {[%emt 0:02:56]} 30. a3 {[%emt 0:00:49]} Kf8 {[%emt 0:06:36]} 31. Rc7 {[%emt 0:01:18]} Ne7 {[%emt 0:00:05]} 32. Rd6 {[%emt 0:02:09]} Ra4 {[%emt 0:01:31]} 33. Bd3 {[%emt 0:01:40]} Raa8 {[%emt 0:10:20]} 34. Be4 {[%emt 0:01:28]} Rac8 {[%emt 0:00:10]} 35. Rb7 {[%emt 0:00:29]} Red8 {[%emt 0:02:40]} 36. b3 {[%emt 0:01:08]} f5 {[%emt 0:01:58]} 37. Rxe6 {[%emt 0:01:48]} Re8 {[%emt 0:01:34]} 38. Bc2 {[%emt 0:00:49]} g6 {[%emt 0:00:27]} 39. Rf6+ {[%emt 0:01:27]} Kg8 {[%emt 0:00:06]} 40. b4 {[%emt 0:00:58]} Nd5 {[%emt 0:00:36]} 41. Rff7 {[%emt 0:30:31]} Rxe5 {[%emt 0:30:09]} 42. Rg7+ {[%emt 0:00:00]} Kf8 {[%emt 0:00:00]} 43. Rxh7 {[%emt 0:00:00]} Re7 {[%emt 0:00:00]} 44. Rbxe7 {[%emt 0:00:00]} Nxe7 {[%emt 0:00:00]} 45. g4 {[%emt 0:00:00]} fxg4 {[%emt 0:00:00]} 46. hxg4 {[%emt 0:00:00]} c5 {[%emt 0:00:00]} 47. Be4 {[%emt 0:00:00]} c4 {[%emt 0:00:00]} 48. Rh8+ {[%emt 0:00:00]} Kf7 {[%emt 0:00:00]} 49. Rxc8 {[%emt 0:00:00]} Nxc8 {[%emt 0:00:00]} 50. Kf2 {[%emt 0:00:00]} Nd6 {[%emt 0:00:00]} 51. Ke3 {[%emt 0:00:00]} g5 {[%emt 0:00:00]} 52. Kd4 {[%emt 0:00:00]} Ke6 {[%emt 0:00:00]} 53. Bc2 {[%emt 0:00:00]} Nf7 {[%emt 0:01:32]} 54. Kc5 {[%emt 0:00:00]} Ne5 {[%emt 0:02:32]} 55. Kxb5 {[%emt 0:00:36]} Kd5 {[%emt 0:00:29]} 56. a4 {[%emt 0:01:10]} Nxf3 {[%emt 0:00:08]} 57. Bd1 {[%emt 0:00:48]} Ne5 {[%emt 0:02:48]} 58. a5 {[%emt 0:00:48]} Kd6 {[%emt 0:00:58]} 59. Kb6 {[%emt 0:00:39]} Nc6 {[%emt 0:01:15]} 60. b5 {[%emt 0:00:32]} Ne7 {[%emt 0:00:47]} 61. a6 {[%emt 0:00:48]} Nd5+ {[%emt 0:00:32]} 62. Kb7 {[%emt 0:02:13]} Kc5 {[%emt 0:00:03]} 63. a7 {[%emt 0:00:38]} Nb6 {[%emt 0:00:04]} 64. a8=Q {[%emt 0:02:47]} Nxa8 {[%emt 0:00:04]} 65. Kxa8 {[%emt 0:00:03]} Kxb5 {[%emt 0:00:04]} 66. Kb7 {[%emt 0:00:58]} c3 {[%emt 0:01:41]} 67. Ka7 {[%emt 0:00:34]} Ka5 {[%emt 0:00:35]} 68. Bc2 {[%emt 0:01:28]} Kb5 {[%emt 0:00:41]} 69. Kb7 {[%emt 0:00:57]} Kc5 {[%emt 0:00:09]} 70. Kc7 {[%emt 0:00:27]} Kd5 {[%emt 0:00:42]} 71. Kd7 {[%emt 0:00:22]} Ke5 {[%emt 0:00:12]} 72. Kc6 {[%emt 0:00:11]} Kf4 {[%emt 0:00:04]} 73. Kd5 {[%emt 0:00:18]} Kxg4 {[%emt 0:00:07]} 74. Kd4 {[%emt 0:00:04]} 1/2-1/2

[Event "Slovakia Open Piestany-A 2022"]
[Site "Piestany"]
[Date "2022.07.15"]
[Round "5.15"]
[White "Delgerdalai, Bayarjavkhlan"]
[Black "Moksh Amit Doshi"]
[Result "0-1"]
[ECO "B90"]
[WhiteElo "2209"]
[BlackElo "2409"]
[Annotator "ChessBase"]
[PlyCount "165"]
[EventDate "2022.07.12"]
[EventType "swiss"]
[EventCountry "SVK"]
[SourceTitle "playchess.com"]
[Source "ChessBase"]
[SourceQuality "1"]
[TimeControl "40/5400+30:1800+30"]

1. e4 {[%emt 0:00:02]} c5 {[%emt 0:04:22]} 2. Nf3 {[%emt 0:00:08]} d6 {[%emt 0:00:07]} 3. d4 {[%emt 0:00:06]} cxd4 {[%emt 0:00:10]} 4. Nxd4 {[%emt 0:00:04]} Nf6 {[%emt 0:00:10]} 5. Nc3 {[%emt 0:00:04]} a6 {[%emt 0:00:07]} 6. Be3 {[%emt 0:00:06]} e5 {[%emt 0:00:06]} 7. Nb3 {[%emt 0:00:06]} Be6 {[%emt 0:00:06]} 8. f3 {[%emt 0:00:12]} Nbd7 {[%emt 0:00:13]} 9. Qd2 {[%emt 0:01:04]} Be7 {[%emt 0:00:09]} 10. g4 {[%emt 0:01:55]} b5 {[%emt 0:00:38]} 11. g5 {[%emt 0:11:02]} Nh5 {[%emt 0:00:07]} 12. Rg1 {[%emt 0:03:24]} Nb6 {[%emt 0:01:26]} 13. Nd5 {[%emt 0:04:28]} Nxd5 {[%emt 0:01:25]} 14. exd5 {[%emt 0:00:25]} Bd7 {[%emt 0:00:08]} 15. Na5 {[%emt 0:09:38]} O-O {[%emt 0:08:23]} 16. Bd3 {[%emt 0:08:57]} Qc7 {[%emt 0:03:58]} 17. O-O-O {[%emt 0:09:16]} Bd8 {[%emt 0:15:55]} 18. Nc6 {[%emt 0:01:11]} Bxc6 {[%emt 0:01:00]} 19. dxc6 {[%emt 0:00:02]} d5 {[%emt 0:00:11]} 20. Bf5 {[%emt 0:04:25]} d4 {[%emt 0:00:28]} 21. Bf2 {[%emt 0:00:35]} Nf4 {[%emt 0:00:41]} 22. Bd7 {[%emt 0:06:24]} Be7 {[%emt 0:01:36]} 23. Kb1 {[%emt 0:01:30]} b4 {[%emt 0:00:46]} 24. Rde1 {[%emt 0:05:58]} Bd6 {[%emt 0:04:20]} 25. h4 {[%emt 0:10:32]} Nd5 {[%emt 0:01:52]} 26. Qd3 {[%emt 0:00:34]} Qa5 {[%emt 0:05:58]} 27. h5 {[%emt 0:01:52]} Rab8 {[%emt 0:02:16]} 28. g6 {[%emt 0:13:41]} Nc3+ {[%emt 0:06:28]} 29. Kc1 {[%emt 0:05:41]} Nxa2+ {[%emt 0:00:24]} 30. Kd1 {[%emt 0:00:57]} Qd5 {[%emt 0:05:30]} 31. gxh7+ {[%emt 0:01:02]} Kh8 {[%emt 0:00:05]} 32. h6 {[%emt 0:00:36]} g6 {[%emt 0:00:06]} 33. Ke2 {[%emt 0:00:27]} b3 {[%emt 0:03:22]} 34. c4 {[%emt 0:00:19]} Qc5 {[%emt 0:00:06]} 35. Rg4 {[%emt 0:00:41]} Nb4 {[%emt 0:02:33]} 36. Qxb3 {[%emt 0:00:12]} Nxc6 {[%emt 0:00:05]} 37. Qc2 {[%emt 0:00:44]} Na5 {[%emt 0:01:55]} 38. Rc1 {[%emt 0:00:35]} Rb4 {[%emt 0:00:09]} 39. Rxg6 {[%emt 0:00:30]} Qxc4+ {[%emt 0:16:06]} 40. Qxc4 {[%emt 0:00:14]} Rxc4 {[%emt 0:01:43]} 41. Rg8+ {[%emt 0:04:16]} Rxg8 {[%emt 0:02:07]} 42. hxg8=Q+ {[%emt 0:00:36]} Kxg8 {[%emt 0:00:06]} 43. Rg1+ {[%emt 0:04:26]} Kh7 {[%emt 0:01:26]} 44. Bf5+ {[%emt 0:06:31]} Kxh6 {[%emt 0:02:35]} 45. Kd3 {[%emt 0:10:37]} Rc7 {[%emt 0:03:23]} 46. Rg8 {[%emt 0:06:32]} Nc6 {[%emt 0:04:19]} 47. Be4 {[%emt 0:00:50]} Ne7 {[%emt 0:00:42]} 48. Rh8+ {[%emt 0:00:27]} Kg7 {[%emt 0:00:08]} 49. Rh7+ {[%emt 0:00:12]} Kg8 {[%emt 0:00:14]} 50. Rh6 {[%emt 0:00:07]} Ng6 {[%emt 0:01:35]} 51. Bg3 {[%emt 0:01:10]} Kg7 {[%emt 0:00:48]} 52. Rh5 {[%emt 0:00:10]} Rc5 {[%emt 0:00:31]} 53. Rh2 {[%emt 0:00:38]} Rc8 {[%emt 0:02:11]} 54. Re2 {[%emt 0:00:43]} Kf6 {[%emt 0:00:59]} 55. Bb7 {[%emt 0:00:08]} Rb8 {[%emt 0:00:07]} 56. Bxa6 {[%emt 0:00:37]} e4+ {[%emt 0:00:15]} 57. Kxd4 {[%emt 0:00:44]} Bxg3 {[%emt 0:00:09]} 58. fxe4 {[%emt 0:00:22]} Be5+ {[%emt 0:00:51]} 59. Kc4 {[%emt 0:00:22]} Bxb2 {[%emt 0:00:21]} 60. Bb5 {[%emt 0:00:31]} Be5 {[%emt 0:00:07]} 61. Bd7 {[%emt 0:00:28]} Nf4 {[%emt 0:04:53]} 62. Ra2 {[%emt 0:00:18]} Rd8 {[%emt 0:00:09]} 63. Bf5 {[%emt 0:00:35]} Rd4+ {[%emt 0:00:13]} 64. Kb5 {[%emt 0:00:32]} Rd1 {[%emt 0:00:17]} 65. Ra6+ {[%emt 0:00:13]} Bd6 {[%emt 0:00:06]} 66. Kc4 {[%emt 0:00:09]} Ne6 {[%emt 0:01:07]} 67. Ra5 {[%emt 0:00:45]} Rc1+ {[%emt 0:00:24]} 68. Kd3 {[%emt 0:00:32]} Nf4+ {[%emt 0:00:26]} 69. Kd4 {[%emt 0:00:27]} Be5+ {[%emt 0:00:33]} 70. Ke3 {[%emt 0:00:26]} Rc3+ {[%emt 0:00:06]} 71. Kd2 {[%emt 0:00:35]} Rg3 {[%emt 0:00:05]} 72. Ra6+ {[%emt 0:00:31]} Kg5 {[%emt 0:00:06]} 73. Ra7 {[%emt 0:00:22]} Kf6 {[%emt 0:01:12]} 74. Ra6+ {[%emt 0:00:24]} Ne6 {[%emt 0:00:03]} 75. Ke2 {[%emt 0:00:13]} Bd4 {[%emt 0:00:06]} 76. Rd6 {[%emt 0:00:17]} Bg1 {[%emt 0:01:18]} 77. Ra6 {[%emt 0:00:19]} Ke5 {[%emt 0:00:17]} 78. Ra5+ {[%emt 0:00:27]} Nc5 {[%emt 0:00:04]} 79. Kf1 {[%emt 0:00:42]} Bd4 {[%emt 0:00:05]} 80. Rb5 {[%emt 0:00:43]} Kf4 {[%emt 0:00:09]} 81. Rb4 {[%emt 0:00:19]} Be3 {[%emt 0:00:20]} 82. Ke2 {[%emt 0:00:37]} Rg2+ {[%emt 0:00:16]} 83. Kd1 {[%emt 0:00:15]} 0-1

[Event "Slovakia Open Piestany-A 2022"]
[Site "Piestany"]
[Date "2022.07.15"]
[Round "5.16"]
[White "Straka, Jozef"]
[Black "Matras, Ondrej"]
[Result "1-0"]
[ECO "E71"]
[WhiteElo "2300"]
[BlackElo "2229"]
[Annotator "ChessBase"]
[PlyCount "83"]
[EventDate "2022.07.12"]
[EventType "swiss"]
[EventCountry "SVK"]
[SourceTitle "playchess.com"]
[Source "ChessBase"]
[SourceQuality "1"]
[TimeControl "40/5400+30:1800+30"]

1. d4 {[%emt 0:00:05]} Nf6 {[%emt 0:05:40]} 2. c4 {[%emt 0:00:07]} g6 {[%emt 0:00:02]} 3. Nc3 {[%emt 0:00:07]} Bg7 {[%emt 0:00:03]} 4. e4 {[%emt 0:00:51]} d6 {[%emt 0:00:03]} 5. h3 {[%emt 0:00:06]} O-O {[%emt 0:00:18]} 6. Be3 {[%emt 0:00:08]} e5 {[%emt 0:00:41]} 7. d5 {[%emt 0:00:02]} Nbd7 {[%emt 0:03:35]} 8. g4 {[%emt 0:00:34]} Nc5 {[%emt 0:00:15]} 9. f3 {[%emt 0:00:36]} Ne8 {[%emt 0:03:50]} 10. Qd2 {[%emt 0:03:27]} f5 {[%emt 0:00:16]} 11. gxf5 {[%emt 0:08:01]} gxf5 {[%emt 0:00:02]} 12. O-O-O {[%emt 0:00:47]} Nf6 {[%emt 0:03:53]} 13. Bd3 {[%emt 0:01:42]} Nxd3+ {[%emt 0:04:01]} 14. Qxd3 {[%emt 0:00:02]} a6 {[%emt 0:00:47]} 15. Nge2 {[%emt 0:16:53]} f4 {[%emt 0:05:57]} 16. Bf2 {[%emt 0:00:24]} Nh5 {[%emt 0:00:03]} 17. Rhg1 {[%emt 0:09:57]} Kh8 {[%emt 0:00:03]} 18. c5 {[%emt 0:06:32]} Bf6 {[%emt 0:02:06]} 19. cxd6 {[%emt 0:05:43]} cxd6 {[%emt 0:00:02]} 20. Na4 {[%emt 0:03:28]} Bh4 {[%emt 0:01:33]} 21. Bxh4 {[%emt 0:01:37]} Qxh4 {[%emt 0:00:03]} 22. Nb6 {[%emt 0:00:20]} Rb8 {[%emt 0:00:14]} 23. Kb1 {[%emt 0:05:58]} Qf2 {[%emt 0:02:49]} 24. Nc4 {[%emt 0:01:17]} Ng3 {[%emt 0:05:21]} 25. Nxg3 {[%emt 0:06:52]} fxg3 {[%emt 0:00:03]} 26. Rdf1 {[%emt 0:00:44]} Qh2 {[%emt 0:06:50]} 27. Rh1 {[%emt 0:08:34]} Qg2 {[%emt 0:00:02]} 28. Nxd6 {[%emt 0:01:58]} Bxh3 {[%emt 0:00:34]} 29. Qc3 {[%emt 0:00:44]} Qxf1+ {[%emt 0:01:47]} 30. Rxf1 {[%emt 0:01:34]} Bxf1 {[%emt 0:00:03]} 31. Qxe5+ {[%emt 0:00:17]} Kg8 {[%emt 0:00:02]} 32. Qxg3+ {[%emt 0:00:13]} Kh8 {[%emt 0:00:02]} 33. Nf7+ {[%emt 0:00:49]} Rxf7 {[%emt 0:00:15]} 34. Qxb8+ {[%emt 0:00:02]} Kg7 {[%emt 0:00:11]} 35. Qg3+ {[%emt 0:06:16]} Kf8 {[%emt 0:00:02]} 36. Qb8+ {[%emt 0:02:26]} Kg7 {[%emt 0:00:03]} 37. Qg3+ {[%emt 0:00:49]} Kf8 {[%emt 0:00:01]} 38. f4 {[%emt 0:03:02]} Rg7 {[%emt 0:00:44]} 39. Qc3 {[%emt 0:01:53]} Bg2 {[%emt 0:00:22]} 40. Qc8+ {[%emt 0:00:30]} Kf7 {[%emt 0:00:02]} 41. Qe6+ {[%emt 0:33:20]} Kf8 {[%emt 0:30:01]} 42. d6 {[%emt 0:00:51]} 1-0